fUSD/lending_fUSD_20250616
["ID","MTS","AMOUNT","RATE_DAILY","PERIOD"]
[366078590,1750051843082,-490.0,0.00016438,2]
[366078591,1750051843092,-2421.88,0.00016438,2]
[366078592,1750051843101,-490.0,0.00016438,2]
[366078593,1750051843112,-632.48,0.00016438,2]
[366078594,1750051843121,-490.0,0.00016438,2]
[366078595,1750051843131,-490.0,0.00016438,2]
[366078596,1750051843140,-498.8,0.00016438,2]
[366078597,1750051843150,-1052.38,0.00016438,2]
[366078598,1750051843159,-1593.87,0.00016438,2]
[366078599,1750051843169,-490.0,0.00016438,2]
[366078600,1750051843178,-490.0,0.00016438,2]
[366078601,1750051843187,-1226.25,0.00016438,2]
[366078602,1750051843196,-1038.66,0.00016438,2]
[366078603,1750051843205,-491.62,0.00016438,2]
[366078604,1750051843215,-786.09,0.00016438,2]
[366078605,1750051843225,-490.0,0.00016438,2]
[366078606,1750051843234,-490.0,0.00016438,2]
[366078607,1750051843244,-490.0,0.00016438,2]
[366078608,1750051843253,-2034.55,0.00016438,2]
[366078609,1750051843263,-490.0,0.00016438,2]
[366078610,1750051843272,-490.0,0.00016438,2]
[366078611,1750051843282,-490.0,0.00016438,2]
[366078612,1750051843292,-502.02,0.00016438,2]
[366078613,1750051843304,-490.0,0.00016438,2]
[366078614,1750051843314,-490.0,0.00016438,2]
[366078615,1750051843323,-641.81,0.00016438,2]
[366078616,1750051843333,-578.79,0.00016438,2]
[366078617,1750051843342,-490.0,0.00016438,2]
[366078618,1750051843352,-1283.96,0.00016438,2]
[366078619,1750051843361,-496.12,0.00016438,2]
[366078620,1750051843371,-575.03,0.00016438,2]
[366078621,1750051843381,-563.97,0.00016438,2]
[366078622,1750051843390,-490.0,0.00016438,2]
[366078623,1750051843399,-1471.88,0.00016438,2]
[366078624,1750051843409,-435.49817229,0.00016438,2]
[366078625,1750051843418,-1305.76,0.00016438,2]
[366078626,1750051843428,-490.0,0.00016438,2]
[366078627,1750051843437,-490.0,0.00016438,2]
[366078628,1750051843447,-598.99,0.00016438,2]
[366078629,1750051843456,-490.0,0.00016438,2]
[366078630,1750051843466,-495.51,0.00016438,2]
[366078631,1750051843475,-1805.84,0.00016438,2]
[366078632,1750051843485,-490.0,0.00016438,2]
[366078633,1750051843495,-490.0,0.00016438,2]
[366078634,1750051843505,-553.22,0.00016438,2]
[366078635,1750051843515,-1256.79,0.00016438,2]
[366078636,1750051843524,-963.6,0.00016438,2]
[366078637,1750051843534,-490.0,0.00016438,2]
[366078638,1750051843544,-490.0,0.00016438,2]
[366078639,1750051843553,-490.0,0.00016438,2]
[366078640,1750051843563,-490.0,0.00016438,2]
[366078641,1750051843572,-490.0,0.00016438,2]
[366078642,1750051843582,-1306.83,0.00016438,2]
[366078643,1750051843592,-775.89,0.00016438,2]
[366078644,1750051843601,-1126.85,0.00016438,2]
[366078645,1750051843610,-490.0,0.00016438,2]
[366078646,1750051843620,-490.0,0.00016438,2]
[366078647,1750051843630,-490.0,0.00016438,2]
[366078648,1750051843640,-490.0,0.00016438,2]
[366078649,1750051843650,-1135.34,0.00016438,2]
[366078650,1750051843660,-490.0,0.00016438,2]
[366078651,1750051843670,-1033.2,0.00016438,2]
[366078652,1750051843680,-973.4,0.00016438,2]
[366078653,1750051843690,-1349.55,0.00016438,2]
[366078654,1750051843700,-490.0,0.00016438,2]
[366078655,1750051843710,-679.24,0.00016438,2]
[366078656,1750051843719,-492.34736973,0.00016438,2]
[366078657,1750051843729,-509.32,0.00016438,2]
[366078658,1750051843738,-722.35,0.00016438,2]
[366078659,1750051843748,-490.0,0.00016438,2]
[366078660,1750051843757,-490.0,0.00016438,2]
[366078661,1750051843767,-490.0,0.00016438,2]
[366078662,1750051843777,-1785.6,0.00016438,2]
[366078663,1750051844047,-490.0,0.00016438,2]
[366078664,1750051844064,-490.0,0.00016438,2]
[366078665,1750051844074,-2115.18,0.00016438,2]
[366078666,1750051844085,-490.0,0.00016438,2]
[366078667,1750051844095,-497.11,0.00016438,2]
[366078668,1750051844104,-738.41,0.00016438,2]
[366078669,1750051844115,-490.0,0.00016438,2]
[366078670,1750051844125,-490.0,0.00016438,2]
[366078671,1750051844135,-473.14624847,0.00016438,2]
[366078672,1750051844145,-521.62,0.00016438,2]
[366078673,1750051844156,-490.0,0.00016438,2]
[366078674,1750051844166,-546.13,0.00016438,2]
[366078675,1750051844175,-490.0,0.00016438,2]
[366078676,1750051844185,-490.0,0.00016438,2]
[366078677,1750051844195,-1144.63,0.00016438,2]
[366078678,1750051844206,-731.47,0.00016438,2]
[366078679,1750051844216,-1597.37,0.00016438,2]
[366078680,1750051844226,-1869.56,0.00016438,2]
[366078681,1750051844236,-490.0,0.00016438,2]
[366078682,1750051844246,-1448.2,0.00016438,2]
[366078683,1750051844256,-921.64,0.00016438,2]
[366078684,1750051844266,-490.0,0.00016438,2]
[366078685,1750051844275,-490.0,0.00016438,2]
[366078686,1750051844285,-490.0,0.00016438,2]
[366078687,1750051844296,-490.0,0.00016438,2]
[366078688,1750051844306,-718.36,0.00016438,2]
[366078689,1750051844316,-989.85,0.00016438,2]
[366078690,1750051844326,-981.77,0.00016438,2]
[366078691,1750051844336,-490.0,0.00016438,2]
[366078692,1750051844347,-507.65,0.00016438,2]
[366078693,1750051844356,-1501.89,0.00016438,2]
[366078694,1750051844366,-490.0,0.00016438,2]
[366078695,1750051844378,-652.97,0.00016438,2]
[366078696,1750051844388,-3800.48,0.00016438,2]
[366078697,1750051844398,-490.0,0.00016438,2]
[366078698,1750051844408,-880.95,0.00016438,2]
[366078699,1750051844417,-1112.3,0.00016438,2]
[366078700,1750051844427,-570.28,0.00016438,2]
[366078701,1750051844436,-490.0,0.00016438,2]
[366078702,1750051844446,-1613.27,0.00016438,2]
[366078703,1750051844456,-1336.7,0.00016438,2]
[366078704,1750051844466,-2069.4,0.00016438,2]
[366078705,1750051844475,-2099.19,0.00016438,2]
[366078706,1750051844485,-608.86,0.00016438,2]
[366078707,1750051844495,-1488.01,0.00016438,2]
[366078708,1750051844504,-4540.03,0.00016438,2]
[366078709,1750051844515,-665.36,0.00016438,2]
[366078710,1750051844524,-737.15,0.00016438,2]
[366078711,1750051844534,-4431.95,0.00016438,2]
[366078712,1750051844544,-500.0,0.00016438,2]
[366078713,1750051844554,-500.0,0.00016438,2]
[366078714,1750051844563,-500.0,0.00016438,2]
[366078715,1750051844573,-707.99,0.00016438,2]
[366078716,1750051844582,-500.0,0.00016438,2]
[366078717,1750051844592,-500.0,0.00016438,2]
[366078718,1750051844602,-471.88797676,0.00016438,2]
[366078719,1750051844611,-585.81,0.00016438,2]
[366078720,1750051844620,-490.0,0.00016438,2]
[366078721,1750051844630,-490.0,0.00016438,2]
[366078722,1750051844640,-1275.75,0.00016438,2]
[366078723,1750051844649,-490.0,0.00016438,2]
[366078724,1750051844659,-1551.61,0.00016438,2]
[366078725,1750051844669,-481.94041308,0.00016438,2]
[366078726,1750051844679,-490.0,0.00016438,2]
[366078727,1750051844689,-614.33,0.00016438,2]
[366078728,1750051844698,-2717.94,0.00016438,2]
[366078729,1750051844707,-2386.24,0.00016438,2]
[366078730,1750051844717,-552.57,0.00016438,2]
[366078731,1750051844726,-497.99,0.00016438,2]
[366078732,1750051844736,-1771.76,0.00016438,2]
[366078733,1750051844745,-490.0,0.00016438,2]
[366078734,1750051844756,-490.0,0.00016438,2]
[366078735,1750051844766,-976.78,0.00016438,2]
[366078736,1750051844775,-958.17,0.00016438,2]
[366078737,1750051844786,-2142.65,0.00016438,2]
[366078738,1750051844795,-490.0,0.00016438,2]
[366078739,1750051844805,-490.0,0.00016438,2]
[366078740,1750051844814,-4441.81,0.00016438,2]
[366078741,1750051844824,-490.0,0.00016438,2]
[366078742,1750051844834,-1447.36,0.00016438,2]
[366078743,1750051844844,-490.0,0.00016438,2]
[366078744,1750051844854,-1144.16,0.00016438,2]
[366078745,1750051844864,-623.82,0.00016438,2]
[366078746,1750051844874,-1202.87,0.00016438,2]
[366078747,1750051844883,-494.88,0.00016438,2]
[366078748,1750051844893,-3097.37,0.00016438,2]
[366078749,1750051844903,-490.0,0.00016438,2]
[366078750,1750051844912,-490.0,0.00016438,2]
[366078751,1750051844923,-490.0,0.00016438,2]
[366078752,1750051844932,-2404.45,0.00016438,2]
[366078753,1750051844942,-1729.45,0.00016438,2]
[366078754,1750051844951,-490.0,0.00016438,2]
[366078755,1750051844961,-941.46,0.00016438,2]
[366078756,1750051844971,-2414.98,0.00016438,2]
[366078757,1750051844981,-1076.27,0.00016438,2]
[366078758,1750051844991,-8601.65,0.00016438,2]
[366078759,1750051845000,-6444.09,0.00016438,2]
[366078760,1750051845010,-490.0,0.00016438,2]
[366078761,1750051845019,-490.0,0.00016438,2]
[366078762,1750051845029,-490.0,0.00016438,2]
[366078763,1750051845039,-2074.18,0.00016438,2]
[366078764,1750051845048,-490.0,0.00016438,2]
[366078765,1750051845058,-490.0,0.00016438,2]
[366078766,1750051845067,-524.39,0.00016438,2]
[366078767,1750051845077,-3426.24,0.00016438,2]
[366078768,1750051845087,-554.57,0.00016438,2]
[366078769,1750051845097,-600.77,0.00016438,2]
[366078770,1750051845106,-1779.9,0.00016438,2]
[366078771,1750051845115,-682.13,0.00016438,2]
[366078772,1750051845125,-6542.77,0.00016438,2]
[366078773,1750051845134,-1096.33,0.00016438,2]
[366078774,1750051845144,-490.0,0.00016438,2]
[366078775,1750051845154,-3654.84,0.00016438,2]
[366078776,1750051845163,-490.0,0.00016438,2]
[366078777,1750051845173,-2302.79,0.00016438,2]
[366078778,1750051845182,-490.0,0.00016438,2]
[366078779,1750051845192,-3189.28,0.00016438,2]
[366078780,1750051845202,-1391.79,0.00016438,2]
[366078781,1750051845211,-1380.97,0.00016438,2]
[366078782,1750051845221,-534.86,0.00016438,2]
[366078783,1750051845231,-2138.29,0.00016438,2]
[366078784,1750051845240,-1771.64,0.00016438,2]
[366078786,1750051845250,-525.55,0.00016438,2]
[366078787,1750051845259,-2572.72,0.00016438,2]
[366078788,1750051845269,-2252.66,0.00016438,2]
[366078789,1750051845278,-671.47,0.00016438,2]
[366078790,1750051845288,-490.0,0.00016438,2]
[366078791,1750051845301,-1712.32,0.00016438,2]
[366078793,1750051845310,-773.5,0.00016438,2]
[366078794,1750051845320,-490.0,0.00016438,2]
[366078795,1750051845329,-1631.73,0.00016438,2]
[366078796,1750051845339,-4260.48,0.00016438,2]
[366078797,1750051845348,-9633.98,0.00016438,2]
[366078798,1750051845358,-490.0,0.00016438,2]
[366078799,1750051845368,-500.0,0.00016438,2]
[366078800,1750051845379,-500.0,0.00016438,2]
[366078801,1750051845389,-2218.19,0.00016438,2]
[366078802,1750051845399,-490.0,0.00016438,2]
[366078803,1750051845410,-1441.25,0.00016438,2]
[366078804,1750051845420,-490.0,0.00016438,2]
[366078805,1750051845429,-1187.24,0.00016438,2]
[366078806,1750051845439,-490.0,0.00016438,2]
[366078807,1750051845448,-8979.56,0.00016438,2]
[366078808,1750051845457,-2031.55,0.00016438,2]
[366078809,1750051845467,-2508.44,0.00016438,2]
[366078810,1750051845477,-868.31,0.00016438,2]
[366078811,1750051845487,-490.0,0.00016438,2]
[366078812,1750051845496,-2706.02,0.00016438,2]
[366078813,1750051845506,-490.0,0.00016438,2]
[366078814,1750051845516,-1394.71,0.00016438,2]
[366078815,1750051845526,-1346.38,0.00016438,2]
[366078816,1750051845536,-804.95,0.00016438,2]
[366078817,1750051845545,-572.54,0.00016438,2]
[366078818,1750051845555,-1710.71,0.00016438,2]
[366078819,1750051845564,-3561.16,0.00016438,2]
[366078820,1750051845574,-2233.71,0.00016438,2]
[366078821,1750051845583,-490.0,0.00016438,2]
[366078822,1750051845593,-2271.19,0.00016438,2]
[366078823,1750051845602,-490.0,0.00016438,2]
[366078824,1750051845611,-1807.79,0.00016438,2]
[366078825,1750051845620,-3951.6,0.00016438,2]
[366078826,1750051845630,-555.85,0.00016438,2]
[366078827,1750051845639,-616.5,0.00016438,2]
[366078828,1750051845652,-976.52,0.00016438,2]
[366078829,1750051845662,-490.0,0.00016438,2]
[366078830,1750051845672,-1655.79,0.00016438,2]
[366078831,1750051845681,-788.41,0.00016438,2]
[366078832,1750051845690,-490.0,0.00016438,2]
[366078833,1750051845699,-1636.49,0.00016438,2]
[366078834,1750051845710,-2217.17,0.00016438,2]
[366078835,1750051845719,-490.0,0.00016438,2]
[366078836,1750051845728,-1208.35,0.00016438,2]
[366078837,1750051845738,-845.9,0.00016438,2]
[366078838,1750051845748,-490.0,0.00016438,2]
[366078839,1750051845758,-1240.94,0.00016438,2]
[366078840,1750051845767,-4518.55,0.00016438,2]
[366078841,1750051845776,-816.3,0.00016438,2]
[366078842,1750051845787,-490.0,0.00016438,2]
[366078843,1750051845796,-9390.77,0.00016438,2]
[366078844,1750051845806,-1078.78,0.00016438,2]
[366078845,1750051845815,-490.0,0.00016438,2]
[366078846,1750051845825,-1165.36,0.00016438,2]
[366078847,1750051845834,-3654.98,0.00016438,2]
[366078848,1750051845843,-791.25,0.00016438,2]
[366078849,1750051845852,-804.19,0.00016438,2]
[366078850,1750051845861,-490.0,0.00016438,2]
[366078851,1750051845871,-571.69,0.00016438,2]
[366078853,1750051845880,-490.0,0.00016438,2]
[366078854,1750051845889,-1222.14,0.00016438,2]
[366078856,1750051845899,-1258.46,0.00016438,2]
[366078859,1750051845909,-1146.6,0.00016438,2]
[366078860,1750051845918,-549.31,0.00016438,2]
[366078862,1750051845928,-5536.58,0.00016438,2]
[366078864,1750051845937,-659.78,0.00016438,2]
[366078866,1750051845946,-920.94,0.00016438,2]
[366078868,1750051845955,-24963.31,0.00016438,2]
[366078870,1750051845965,-890.53,0.00016438,2]
[366078872,1750051845974,-10760.82,0.00016438,2]
[366078874,1750051845984,-1686.28,0.00016438,2]
[366078876,1750051845993,-490.0,0.00016438,2]
[366078878,1750051846002,-490.0,0.00016438,2]
[366078880,1750051846011,-1809.59,0.00016438,2]
[366078882,1750051846021,-1835.2,0.00016438,2]
[366078884,1750051846030,-6886.72,0.00016438,2]
[366078886,1750051846040,-1946.57,0.00016438,2]
[366078888,1750051846049,-490.0,0.00016438,2]
[366078890,1750051846059,-2259.03,0.00016438,2]
[366078892,1750051846068,-1287.91,0.00016438,2]
[366078894,1750051846077,-737.23,0.00016438,2]
[366078896,1750051846086,-786.76,0.00016438,2]
[366078898,1750051846096,-1660.28,0.00016438,2]
[366078900,1750051846105,-490.0,0.00016438,2]
[366078902,1750051846115,-853.59,0.00016438,2]
[366078904,1750051846124,-383.1466226,0.00016438,2]
[366078906,1750051846134,-520.61,0.00016438,2]
[366078908,1750051846143,-1006.74,0.00016438,2]
[366078910,1750051846153,-888.42,0.00016438,2]
[366078911,1750051846162,-1115.03,0.00016438,2]
[366078912,1750051846172,-2273.98,0.00016438,2]
[366078913,1750051846181,-1217.39,0.00016438,2]
[366078914,1750051846190,-490.0,0.00016438,2]
[366078915,1750051846199,-521.37,0.00016438,2]
[366078916,1750051846208,-1330.17,0.00016438,2]
[366078917,1750051846217,-2146.4,0.00016438,2]
[366078918,1750051846226,-2976.88,0.00016438,2]
[366078919,1750051846236,-490.0,0.00016438,2]
[366078920,1750051846245,-490.0,0.00016438,2]
[366078921,1750051846254,-490.0,0.00016438,2]
[366078922,1750051846263,-6739.2,0.00016438,2]
[366078923,1750051846708,-1201.08,0.00016438,2]
[366078924,1750051846718,-1424.45,0.00016438,2]
[366078925,1750051846728,-490.0,0.00016438,2]
[366078926,1750051846737,-2795.33,0.00016438,2]
[366078927,1750051846747,-864.59,0.00016438,2]
[366078928,1750051846756,-800.01,0.00016438,2]
[366078929,1750051846765,-3257.3,0.00016438,2]
[366078930,1750051846775,-1026.32,0.00016438,2]
[366078931,1750051846784,-733.13,0.00016438,2]
[366078932,1750051846793,-1043.59,0.00016438,2]
[366078933,1750051846802,-1401.92,0.00016438,2]
[366078934,1750051846812,-1608.98,0.00016438,2]
[366078935,1750051846822,-655.73,0.00016438,2]
[366078936,1750051846831,-1303.2,0.00016438,2]
[366078937,1750051846841,-490.54487417,0.00016438,2]
[366078938,1750051846851,-1283.32,0.00016438,2]
[366078939,1750051846860,-3953.84,0.00016438,2]
[366078940,1750051846870,-1339.51,0.00016438,2]
[366078941,1750051846879,-786.38,0.00016438,2]
[366078942,1750051846888,-158.33889187,0.00016438,2]
[366078943,1750051847901,-631.02499997,0.00016108,2]
[366078944,1750051848483,-391.36176786,0.00016108,2]
[366078945,1750051848494,-621.32110813,0.00016438,2]
[366078946,1750051848504,-1214.18,0.00016438,2]
[366078947,1750051848514,-646.16,0.00016438,2]
[366078948,1750051848524,-778.25,0.00016438,2]
[366078949,1750051848534,-490.0,0.00016438,2]
[366078950,1750051848544,-973.7,0.00016438,2]
[366078951,1750051848555,-13513.75626735,0.00016438,2]
[366078952,1750051848611,-809.69404754,0.00016438,2]
[366078953,1750051848624,-2692.85255664,0.00016438,2]
[366078954,1750051848636,-2818.60712847,0.00016438,2]
[366078955,1750051848646,-1331.17471493,0.00016438,2]
[366078956,1750051849877,-823.53845281,0.00016108,2]
[366078957,1750051849893,-308.27282132,0.00016108,2]
[366078958,1750051849902,-1092.36048847,0.00016108,2]
[366078959,1750051849912,-2895.74528507,0.00016438,2]
[366078960,1750051849921,-846.1,0.00016438,2]
[366078961,1750051849930,-2003.08987907,0.00016438,2]
[366078962,1750051849949,-529.6,0.00016438,2]
[366078963,1750051871682,200.0,0.00014844,2]
[366078967,1750052092243,-20000.0,0.00015527,2]
[366078968,1750052092284,-3900.0,0.00015527,2]
[366078969,1750052092306,-200.0,0.00015557,2]
[366078970,1750052092329,-1968.48,0.0001561,2]
[366078971,1750052092351,-300.0,0.00015859,2]
[366078972,1750052099775,170.02,0.00012476,2]
[366078973,1750052131267,166.0,0.000153,2]
[366078974,1750052131865,166.0,0.000153,2]
[366078975,1750052171730,1000.0,0.00015562,2]
[366078978,1750052185145,855.58,0.00015562,2]
[366078979,1750052190696,175.23,0.00013699,2]
[366078981,1750052204914,666.0,0.00015557,2]
[366078986,1750052342236,10432.69,0.00015578,2]
[366078987,1750052342267,16024.96,0.00015578,2]
[366078988,1750052373371,200.0,0.00015578,7]
[366078989,1750052412583,204.0,0.00015501,2]
[366078990,1750052455605,172.0,0.00015566,2]
[366078995,1750052772332,204.0,0.00015849,2]
[366078997,1750052798669,250.0,0.00015518,2]
[366079021,1750053007803,984.24,0.00015518,2]
[366079026,1750053031663,-467.21239657,0.000161,2]
[366079027,1750053031674,-378.55248536,0.000161,2]
[366079028,1750053031686,-13.58929152,0.000161,2]
[366079029,1750053031697,-207.4,0.000161,2]
[366079030,1750053031706,-251.37326861,0.00016107,2]
[366079031,1750053031718,-48.62673139,0.00016107,2]
[366079032,1750053031727,-737.94536861,0.00016107,2]
[366079033,1750053031739,-462.05463139,0.00016107,2]
[366079034,1750053031750,-305.82,0.00016108,2]
[366079035,1750053031759,-305.94,0.00016108,2]
[366079036,1750053031768,-302.73,0.00016108,2]
[366079037,1750053031779,-303.08,0.00016108,2]
[366079038,1750053031789,-300.54,0.00016108,2]
[366079039,1750053031798,-300.09,0.00016108,2]
[366079040,1750053031808,-301.96,0.00016108,2]
[366079041,1750053031818,-1134.00493982,0.00016108,2]
[366079042,1750053031827,-1016.94966843,0.00016108,2]
[366079043,1750053031837,-1013.40785153,0.00016109,2]
[366079044,1750053031846,-1012.44539911,0.00016109,2]
[366079045,1750053031855,-1130.39244031,0.00016109,2]
[366079046,1750053031865,-1054.78132936,0.00016109,2]
[366079047,1750053031874,-1135.5887813,0.00016109,2]
[366079048,1750053031883,-1057.71478287,0.00016109,2]
[366079049,1750053031893,-1004.88613361,0.00016109,2]
[366079050,1750053031902,-1019.00365189,0.00016109,2]
[366079051,1750053031911,-1029.23100602,0.00016109,2]
[366079052,1750053031921,-1131.19062926,0.00016109,2]
[366079053,1750053031930,-1129.0,0.00016273,2]
[366079054,1750053031941,-810.8411732,0.00016336,2]
[366079055,1750053031950,-158.57490966,0.00016338,2]
[366079056,1750053031959,-671.80158334,0.00016338,2]
[366079057,1750053031970,-204.22281208,0.00016338,2]
[366079058,1750053031979,-671.80158326,0.00016397,2]
[366079060,1750053031989,-160.42974535,0.000164,2]
[366079061,1750053031998,-351.6714183,0.00016422,2]
[366079062,1750053032007,-1129.0,0.00016422,2]
[366079064,1750053032017,-158.57490966,0.00016427,2]
[366079066,1750053032026,-23.31382026,0.00016437,2]
[366079068,1750053032039,-274.63318984,0.00016437,2]
[366079070,1750053032048,-165.781,0.00016437,2]
[366079072,1750053032057,-1646.52733866,0.00016437,2]
[366079075,1750053032083,-798.05166134,0.00016437,2]
[366079077,1750053032092,-490.0,0.00016438,2]
[366079079,1750053032101,-490.0,0.00016438,2]
[366079081,1750053032111,-490.0,0.00016438,2]
[366079083,1750053032120,-500.0,0.00016438,2]
[366079085,1750053032129,-198.17845595,0.00016438,2]
[366079087,1750053032139,-123.40849776,0.00016438,2]
[366079090,1750053032156,-376.59150224,0.00016438,2]
[366079092,1750053032166,-500.0,0.00016438,2]
[366079094,1750053032175,-504.53429006,0.00016438,2]
[366079096,1750053032185,-490.0,0.00016438,2]
[366079098,1750053032195,-200.0,0.00016438,2]
[366079100,1750053032210,-490.0,0.00016438,2]
[366079102,1750053032220,-490.0,0.00016438,2]
[366079105,1750053032230,-492.96509274,0.00016438,2]
[366079107,1750053032239,-262.32755457,0.00016438,2]
[366079110,1750053032266,-227.67244543,0.00016438,2]
[366079112,1750053032277,-501.12132433,0.00016438,2]
[366079114,1750053032287,-490.0,0.00016438,2]
[366079116,1750053032297,-490.0,0.00016438,2]
[366079118,1750053032307,-490.0,0.00016438,2]
[366079120,1750053032317,-490.0,0.00016438,2]
[366079122,1750053032327,-490.0,0.00016438,2]
[366079124,1750053032337,-162.86032674,0.00016438,2]
[366079137,1750053032449,-282.35592706,0.00016438,2]
[366079460,1750053037495,-487.16144789,0.00016109,2]
[366079461,1750053037510,-628.30242695,0.00016109,2]
[366079462,1750053037522,-44.7837462,0.00016438,2]
[366079463,1750053037532,-698.31,0.00016438,2]
[366079464,1750053037542,-698.51,0.00016438,2]
[366079465,1750053037553,-490.0,0.00016438,2]
[366079466,1750053037563,-490.0,0.00016438,2]
[366079467,1750053037573,-638.35,0.00016438,2]
[366079468,1750053037583,-490.0,0.00016438,2]
[366079469,1750053037593,-490.0,0.00016438,2]
[366079470,1750053037603,-490.0,0.00016438,2]
[366079471,1750053037614,-490.0,0.00016438,2]
[366079472,1750053037624,-490.0,0.00016438,2]
[366079473,1750053037635,-490.0,0.00016438,2]
[366079474,1750053037645,-490.0,0.00016438,2]
[366079475,1750053037655,-499.94,0.00016438,2]
[366079476,1750053037666,-490.0,0.00016438,2]
[366079477,1750053037676,-490.0,0.00016438,2]
[366079478,1750053037686,-490.0,0.00016438,2]
[366079479,1750053037696,-490.0,0.00016438,2]
[366079480,1750053037706,-490.0,0.00016438,2]
[366079481,1750053037716,-490.0,0.00016438,2]
[366079482,1750053037726,-490.0,0.00016438,2]
[366079483,1750053037738,-370.68505717,0.00016438,2]
[366079484,1750053037782,-119.31494283,0.00016438,2]
[366079485,1750053037794,-677.88,0.00016438,2]
[366079486,1750053037803,-312.26552216,0.00016438,2]
[366079487,1750053037816,-177.73447784,0.00016438,2]
[366079488,1750053037827,-582.51,0.00016438,2]
[366079490,1750053037839,-501.36,0.00016438,2]
[366079491,1750053037848,-490.0,0.00016438,2]
[366079493,1750053037858,-490.0,0.00016438,2]
[366079495,1750053037868,-490.0,0.00016438,2]
[366079497,1750053037878,-490.0,0.00016438,2]
[366079499,1750053037888,-490.0,0.00016438,2]
[366079501,1750053037899,-490.0,0.00016438,2]
[366079503,1750053037909,-490.0,0.00016438,2]
[366079505,1750053037918,-308.39552216,0.00016438,2]
[366079515,1750053038025,-181.60447784,0.00016438,2]
[366079516,1750053038035,-490.0,0.00016438,2]
[366079517,1750053038045,-371.22507869,0.00016438,2]
[366079519,1750053038057,-118.77492131,0.00016438,2]
[366079520,1750053038067,-501.77,0.00016438,2]
[366079521,1750053038077,-490.0,0.00016438,2]
[366079522,1750053038087,-490.0,0.00016438,2]
[366079523,1750053038097,-490.0,0.00016438,2]
[366079524,1750053038107,-490.0,0.00016438,2]
[366079525,1750053038118,-490.0,0.00016438,2]
[366079526,1750053038128,-490.0,0.00016438,2]
[366079527,1750053038138,-490.0,0.00016438,2]
[366079528,1750053038148,-490.0,0.00016438,2]
[366079529,1750053038158,-499.07,0.00016438,2]
[366079530,1750053038168,-540.47,0.00016438,2]
[366079531,1750053038178,-551.07,0.00016438,2]
[366079532,1750053038188,-490.0,0.00016438,2]
[366079533,1750053038198,-490.0,0.00016438,2]
[366079534,1750053038208,-490.0,0.00016438,2]
[366079535,1750053038218,-490.0,0.00016438,2]
[366079536,1750053038228,-490.0,0.00016438,2]
[366079537,1750053038238,-490.0,0.00016438,2]
[366079538,1750053038248,-490.0,0.00016438,2]
[366079539,1750053038258,-932.84,0.00016438,2]
[366079540,1750053038268,-490.0,0.00016438,2]
[366079541,1750053038279,-490.0,0.00016438,2]
[366079542,1750053038289,-490.0,0.00016438,2]
[366079543,1750053038299,-490.0,0.00016438,2]
[366079544,1750053038309,-490.0,0.00016438,2]
[366079545,1750053038319,-490.0,0.00016438,2]
[366079546,1750053038330,-490.0,0.00016438,2]
[366079547,1750053038340,-490.0,0.00016438,2]
[366079548,1750053038350,-490.0,0.00016438,2]